[Event "*** Titled Tuesday Blitz"]
[Site "Chess.com"]
[Date "2021.03.30"]
[Round "1"]
[White "AlexSuv"]
[Black "andy_rekt"]
[Result "0-1"]
[WhiteElo "2568"]
[BlackElo "2310"]
[TimeControl "180+1"]
[EndTime "10:07:42 PDT"]
[Termination "andy_rekt won by resignation"]

1. d4 {[%clk 0:02:56.9]} 1... f5 {[%clk 0:02:58.9]} 2. g3 {[%clk 0:02:54.6]}
2... Nf6 {[%clk 0:02:59.2]} 3. Bg2 {[%clk 0:02:52.9]} 3... g6 {[%clk 0:02:59.7]}
4. Nf3 {[%clk 0:02:47.9]} 4... Bg7 {[%clk 0:02:59.7]} 5. O-O {[%clk 0:02:48.8]}
5... O-O {[%clk 0:02:58.5]} 6. c4 {[%clk 0:02:45.2]} 6... d6 {[%clk 0:02:58.7]}
7. Nc3 {[%clk 0:02:44.2]} 7... Nc6 {[%clk 0:02:58.9]} 8. d5 {[%clk 0:02:41.1]}
8... Ne5 {[%clk 0:02:58.8]} 9. Nd2 {[%clk 0:02:35.9]} 9... c5 {[%clk 0:02:54.9]}
10. h3 {[%clk 0:02:27.6]} 10... a6 {[%clk 0:02:49.9]} 11. f4 {[%clk 0:02:20.9]}
11... Nf7 {[%clk 0:02:49.4]} 12. e4 {[%clk 0:02:21.1]} 12... fxe4 {[%clk
0:02:40.3]} 13. Ndxe4 {[%clk 0:02:22]} 13... Nxe4 {[%clk 0:02:28.6]} 14. Nxe4
{[%clk 0:02:22.9]} 14... b5 {[%clk 0:02:26.7]} 15. cxb5 {[%clk 0:02:04.3]} 15...
axb5 {[%clk 0:02:22.9]} 16. g4 {[%clk 0:02:04.7]} 16... Bb7 {[%clk 0:02:12.3]}
17. f5 {[%clk 0:01:52.2]} 17... Bd4+ {[%clk 0:02:02.3]} 18. Kh1 {[%clk
0:01:51.9]} 18... Bxd5 {[%clk 0:01:53.9]} 19. Nf6+ {[%clk 0:01:49.9]} 19... exf6
{[%clk 0:01:41.1]} 20. Bxd5 {[%clk 0:01:50.8]} 20... Ra7 {[%clk 0:01:37.2]} 21.
fxg6 {[%clk 0:01:46.7]} 21... hxg6 {[%clk 0:01:36.9]} 22. Qd3 {[%clk 0:01:36.7]}
22... Kg7 {[%clk 0:01:28.3]} 23. Qxb5 {[%clk 0:01:36.9]} 23... Re7 {[%clk
0:01:22.4]} 24. Bf4 {[%clk 0:01:32.1]} 24... Rfe8 {[%clk 0:01:11.3]} 25. a4
{[%clk 0:01:10.4]} 25... Re2 {[%clk 0:01:08.1]} 26. a5 {[%clk 0:01:00]} 26...
Rxb2 {[%clk 0:01:04.1]} 27. Qc4 {[%clk 0:00:59.4]} 27... Ne5 {[%clk 0:00:59]}
28. Bxe5 {[%clk 0:00:47.4]} 28... Rxe5 {[%clk 0:00:57.4]} 29. Ra2 {[%clk
0:00:35.1]} 29... Rb4 {[%clk 0:00:43.9]} 30. Qc2 {[%clk 0:00:19.6]} 30... Rxd5
{[%clk 0:00:43.3]} 31. a6 {[%clk 0:00:20.1]} 31... Re5 {[%clk 0:00:40.8]} 32. a7
{[%clk 0:00:20]} 32... Qa8+ {[%clk 0:00:40.8]} 33. Qg2 {[%clk 0:00:20.4]} 33...
d5 {[%clk 0:00:35.6]} 34. Qf3 {[%clk 0:00:17.6]} 34... Re7 {[%clk 0:00:33.2]}
35. g5 {[%clk 0:00:17.1]} 35... f5 {[%clk 0:00:29.9]} 36. h4 {[%clk 0:00:15.3]}
36... Rxa7 {[%clk 0:00:29.1]} 37. Re2 {[%clk 0:00:14.4]} 37... Rb8 {[%clk
0:00:20.6]} 38. h5 {[%clk 0:00:13.6]} 38... gxh5 {[%clk 0:00:20.2]} 39. Qxf5
{[%clk 0:00:13]} 39... Rf8 {[%clk 0:00:19.1]} 40. Qh3 {[%clk 0:00:08.8]} 40...
Rxf1+ {[%clk 0:00:18.8]} 41. Qxf1 {[%clk 0:00:09.7]} 41... Qf8 {[%clk
0:00:18.1]} 42. Qh3 {[%clk 0:00:07.3]} 42... Rf7 {[%clk 0:00:17.7]} 43. Qxh5
{[%clk 0:00:06.4]} 43... Rf1+ {[%clk 0:00:17.9]} 44. Kg2 {[%clk 0:00:06.9]}
44... Rg1+ {[%clk 0:00:16.5]} 45. Kh2 {[%clk 0:00:05.9]} 45... Qf4+ {[%clk
0:00:16.3]} 46. Kh3 {[%clk 0:00:05.7]} 46... Rh1+ {[%clk 0:00:16.7]} 47. Kg2
{[%clk 0:00:05.9]} 47... Rxh5 {[%clk 0:00:17]} 0-1

[Event "*** Titled Tuesday Blitz"]
[Site "Chess.com"]
[Date "2021.03.30"]
[Round "1"]
[White "Mr_Sinigami"]
[Black "chessmause"]
[Result "1/2-1/2"]
[WhiteElo "2533"]
[BlackElo "2231"]
[TimeControl "180+1"]
[EndTime "10:07:42 PDT"]
[Termination "Game drawn - insufficient material"]

1. b3 {[%clk 0:02:59.7]} 1... e5 {[%clk 0:02:56.9]} 2. Bb2 {[%clk 0:02:59.9]}
2... Nc6 {[%clk 0:02:56.2]} 3. g3 {[%clk 0:02:59.8]} 3... d5 {[%clk 0:02:54.2]}
4. Bg2 {[%clk 0:02:59.5]} 4... Be6 {[%clk 0:02:53.1]} 5. d3 {[%clk 0:02:54.6]}
5... Qd7 {[%clk 0:02:48.9]} 6. Nf3 {[%clk 0:02:52.8]} 6... f6 {[%clk 0:02:48.4]}
7. O-O {[%clk 0:02:48.3]} 7... Bh3 {[%clk 0:02:46.6]} 8. c4 {[%clk 0:02:47]}
8... Bxg2 {[%clk 0:02:42.2]} 9. Kxg2 {[%clk 0:02:46.7]} 9... d4 {[%clk
0:02:37.5]} 10. e3 {[%clk 0:02:43.1]} 10... Bc5 {[%clk 0:02:32.1]} 11. b4 {[%clk
0:02:34]} 11... Bxb4 {[%clk 0:02:19.4]} 12. exd4 {[%clk 0:02:33.5]} 12... Nxd4
{[%clk 0:02:13.7]} 13. Nxd4 {[%clk 0:02:26.8]} 13... exd4 {[%clk 0:02:12.4]} 14.
Qf3 {[%clk 0:02:22.8]} 14... O-O-O {[%clk 0:02:07.9]} 15. Na3 {[%clk 0:02:17.6]}
15... h5 {[%clk 0:02:00.4]} 16. Rab1 {[%clk 0:02:09.7]} 16... h4 {[%clk
0:01:45.6]} 17. g4 {[%clk 0:02:01.7]} 17... h3+ {[%clk 0:01:20.9]} 18. Kh1
{[%clk 0:02:01.3]} 18... Qc6 {[%clk 0:01:02.6]} 19. Qxc6 {[%clk 0:01:59]} 19...
bxc6 {[%clk 0:01:02]} 20. Nc2 {[%clk 0:01:48]} 20... Bc5 {[%clk 0:00:56.3]} 21.
Bc1 {[%clk 0:01:36.8]} 21... Nh6 {[%clk 0:00:51.7]} 22. f3 {[%clk 0:01:32.2]}
22... Nf7 {[%clk 0:00:49.3]} 23. Bf4 {[%clk 0:01:31.6]} 23... Rhe8 {[%clk
0:00:32.7]} 24. Rfe1 {[%clk 0:01:26.8]} 24... g5 {[%clk 0:00:31.5]} 25. Bg3
{[%clk 0:01:26.1]} 25... Bd6 {[%clk 0:00:30.1]} 26. Rxe8 {[%clk 0:01:12.4]}
26... Rxe8 {[%clk 0:00:28.4]} 27. Nxd4 {[%clk 0:01:12.4]} 27... Bxg3 {[%clk
0:00:27.5]} 28. hxg3 {[%clk 0:01:12.4]} 28... Re3 {[%clk 0:00:27.3]} 29. Nxc6
{[%clk 0:00:54]} 29... Rxf3 {[%clk 0:00:27.2]} 30. d4 {[%clk 0:00:43.4]} 30...
Rxg3 {[%clk 0:00:26.1]} 31. Rf1 {[%clk 0:00:34.8]} 31... Nh6 {[%clk 0:00:23.5]}
32. Rxf6 {[%clk 0:00:26.4]} 32... Nxg4 {[%clk 0:00:23.6]} 33. Rf8+ {[%clk
0:00:26.3]} 33... Kb7 {[%clk 0:00:23]} 34. d5 {[%clk 0:00:25.9]} 34... Re3
{[%clk 0:00:18.7]} 35. Rb8+ {[%clk 0:00:19.3]} 35... Ka6 {[%clk 0:00:18.8]} 36.
Nb4+ {[%clk 0:00:19]} 36... Ka5 {[%clk 0:00:18.5]} 37. Nc6+ {[%clk 0:00:18.5]}
37... Ka4 {[%clk 0:00:18.7]} 38. Rb4+ {[%clk 0:00:17.9]} 38... Ka3 {[%clk
0:00:18.9]} 39. Rb3+ {[%clk 0:00:17.8]} 39... Rxb3 {[%clk 0:00:19]} 40. axb3
{[%clk 0:00:17.9]} 40... Kxb3 {[%clk 0:00:19.9]} 41. c5 {[%clk 0:00:17.1]} 41...
Kc4 {[%clk 0:00:19.7]} 42. d6 {[%clk 0:00:17.1]} 42... cxd6 {[%clk 0:00:20]} 43.
cxd6 {[%clk 0:00:17.4]} 43... Nf6 {[%clk 0:00:20]} 44. Nxa7 {[%clk 0:00:16.4]}
44... Kd5 {[%clk 0:00:19.7]} 45. Nb5 {[%clk 0:00:16.3]} 45... Kc6 {[%clk
0:00:19.4]} 46. Nd4+ {[%clk 0:00:10.7]} 46... Kxd6 {[%clk 0:00:19]} 47. Kh2
{[%clk 0:00:11]} 47... Ke5 {[%clk 0:00:18.1]} 48. Nf3+ {[%clk 0:00:10.2]} 48...
Kf4 {[%clk 0:00:17.7]} 49. Nxg5 {[%clk 0:00:10.3]} 49... Kxg5 {[%clk 0:00:16.8]}
50. Kxh3 {[%clk 0:00:10.3]} 1/2-1/2

[Event "*** Titled Tuesday Blitz"]
[Site "Chess.com"]
[Date "2021.03.30"]
[Round "1"]
[White "pastouche06"]
[Black "HeroString"]
[Result "1-0"]
[WhiteElo "2554"]
[BlackElo "2246"]
[TimeControl "180+1"]
[EndTime "10:07:43 PDT"]
[Termination "pastouche06 won on time"]

1. d4 {[%clk 0:03:00.8]} 1... d5 {[%clk 0:02:59.8]} 2. c4 {[%clk 0:03:00.6]}
2... c6 {[%clk 0:03:00.1]} 3. Nf3 {[%clk 0:02:59.7]} 3... Nf6 {[%clk 0:03:00.2]}
4. Qc2 {[%clk 0:03:00.3]} 4... dxc4 {[%clk 0:02:59.9]} 5. e4 {[%clk 0:02:59.9]}
5... b5 {[%clk 0:02:59.1]} 6. b3 {[%clk 0:02:59.5]} 6... cxb3 {[%clk 0:02:57]}
7. axb3 {[%clk 0:03:00.4]} 7... Bb7 {[%clk 0:02:55.9]} 8. Bd2 {[%clk 0:02:59.2]}
8... Nbd7 {[%clk 0:02:49.6]} 9. Ba5 {[%clk 0:02:52.1]} 9... Nb6 {[%clk
0:02:45.5]} 10. Bd3 {[%clk 0:02:43.7]} 10... e6 {[%clk 0:02:44.8]} 11. O-O
{[%clk 0:02:36.4]} 11... Be7 {[%clk 0:02:37.4]} 12. Nbd2 {[%clk 0:02:28.2]}
12... h6 {[%clk 0:02:36.5]} 13. b4 {[%clk 0:02:17.4]} 13... O-O {[%clk
0:02:34.1]} 14. Nb3 {[%clk 0:02:17.4]} 14... Qc8 {[%clk 0:02:19.3]} 15. Nc5
{[%clk 0:02:13.2]} 15... Nbd7 {[%clk 0:02:15.5]} 16. Qe2 {[%clk 0:02:03.5]}
16... Nxc5 {[%clk 0:02:15.2]} 17. bxc5 {[%clk 0:01:59.6]} 17... Bd8 {[%clk
0:02:10.1]} 18. Bd2 {[%clk 0:01:57.2]} 18... Bc7 {[%clk 0:02:08.5]} 19. e5
{[%clk 0:01:49.2]} 19... Nd5 {[%clk 0:01:52.4]} 20. Qe4 {[%clk 0:01:49.2]} 20...
f5 {[%clk 0:01:48.2]} 21. exf6 {[%clk 0:01:48.7]} 21... Rxf6 {[%clk 0:01:41.6]}
22. Ne5 {[%clk 0:01:39.3]} 22... a5 {[%clk 0:01:29.1]} 23. Qh7+ {[%clk
0:01:33.4]} 23... Kf8 {[%clk 0:01:29.2]} 24. Qh8+ {[%clk 0:01:34.3]} 24... Ke7
{[%clk 0:01:29.6]} 25. Qxg7+ {[%clk 0:01:34.9]} 25... Kd8 {[%clk 0:01:24.1]} 26.
Nf7+ {[%clk 0:01:26.1]} 26... Ke8 {[%clk 0:01:17.2]} 27. Bg6 {[%clk 0:01:15.5]}
27... Rxg6 {[%clk 0:00:44.1]} 28. Qxg6 {[%clk 0:01:14.2]} 28... Ne7 {[%clk
0:00:44.7]} 29. Qh5 {[%clk 0:01:05.7]} 29... Kd7 {[%clk 0:00:43.3]} 30. Ne5+
{[%clk 0:00:59.1]} 30... Bxe5 {[%clk 0:00:42]} 31. dxe5 {[%clk 0:01:00]} 31...
Qg8 {[%clk 0:00:39.4]} 32. Rxa5 {[%clk 0:00:52.4]} 32... Rxa5 {[%clk 0:00:33.5]}
33. Bxa5 {[%clk 0:00:53.3]} 33... Qg5 {[%clk 0:00:21.7]} 34. Rd1+ {[%clk
0:00:48.7]} 34... Nd5 {[%clk 0:00:21.6]} 35. Qf7+ {[%clk 0:00:43.3]} 35... Qe7
{[%clk 0:00:21.7]} 36. Qg8 {[%clk 0:00:38.2]} 36... b4 {[%clk 0:00:16.2]} 37.
Qb8 {[%clk 0:00:36.1]} 37... Bc8 {[%clk 0:00:11.7]} 38. Bxb4 {[%clk 0:00:30]}
38... Qg5 {[%clk 0:00:09.1]} 39. Bd2 {[%clk 0:00:23.8]} 39... Qg4 {[%clk
0:00:06.9]} 40. Rf1 {[%clk 0:00:20.5]} 40... h5 {[%clk 0:00:05.4]} 41. Qd6+
{[%clk 0:00:19.1]} 41... Ke8 {[%clk 0:00:03.3]} 42. Qxc6+ {[%clk 0:00:19.5]}
42... Bd7 {[%clk 0:00:03.8]} 43. Qd6 {[%clk 0:00:19.9]} 43... h4 {[%clk
0:00:03.2]} 44. c6 {[%clk 0:00:19.9]} 44... Bc8 {[%clk 0:00:02.9]} 45. c7 {[%clk
0:00:17.2]} 45... h3 {[%clk 0:00:02.5]} 46. Qd8+ {[%clk 0:00:13.7]} 46... Kf7
{[%clk 0:00:01.7]} 47. Qg5 {[%clk 0:00:14.2]} 1-0

[Event "*** Titled Tuesday Blitz"]
[Site "Chess.com"]
[Date "2021.03.30"]
[Round "1"]
[White "Limelight2727"]
[Black "Nikolaj_6"]
[Result "0-1"]
[WhiteElo "2346"]
[BlackElo "2646"]
[TimeControl "180+1"]
[EndTime "10:07:44 PDT"]
[Termination "Nikolaj_6 won by checkmate"]

1. d4 {[%clk 0:03:00.9]} 1... Nf6 {[%clk 0:02:59.5]} 2. c4 {[%clk 0:02:57.9]}
2... e6 {[%clk 0:02:59.3]} 3. Nc3 {[%clk 0:02:56.8]} 3... Bb4 {[%clk 0:02:59.2]}
4. Qc2 {[%clk 0:02:57.2]} 4... b6 {[%clk 0:02:51.3]} 5. a3 {[%clk 0:02:47.1]}
5... Bxc3+ {[%clk 0:02:49.9]} 6. Qxc3 {[%clk 0:02:48]} 6... Bb7 {[%clk
0:02:49.5]} 7. f3 {[%clk 0:02:47.5]} 7... d5 {[%clk 0:02:45.1]} 8. Bg5 {[%clk
0:02:43.7]} 8... Nbd7 {[%clk 0:02:38.2]} 9. e3 {[%clk 0:02:41.7]} 9... O-O
{[%clk 0:02:31.2]} 10. Bd3 {[%clk 0:02:16.7]} 10... h6 {[%clk 0:02:27.3]} 11.
Bh4 {[%clk 0:02:15.8]} 11... c5 {[%clk 0:02:27.2]} 12. Ne2 {[%clk 0:02:15.1]}
12... Rc8 {[%clk 0:02:17.7]} 13. cxd5 {[%clk 0:02:07.4]} 13... Nxd5 {[%clk
0:02:12.4]} 14. Bxd8 {[%clk 0:02:05.7]} 14... Nxc3 {[%clk 0:02:12.6]} 15. bxc3
{[%clk 0:01:48.9]} 15... Rfxd8 {[%clk 0:02:11.7]} 16. O-O {[%clk 0:01:45.4]}
16... e5 {[%clk 0:02:01.5]} 17. Bf5 {[%clk 0:01:42.2]} 17... Ba6 {[%clk
0:01:57.1]} 18. Rfe1 {[%clk 0:01:38.3]} 18... exd4 {[%clk 0:01:51.1]} 19. cxd4
{[%clk 0:01:23.7]} 19... Bxe2 {[%clk 0:01:50.6]} 20. Rxe2 {[%clk 0:01:22.5]}
20... cxd4 {[%clk 0:01:50.9]} 21. exd4 {[%clk 0:01:20.6]} 21... g6 {[%clk
0:01:41.9]} 22. Bxd7 {[%clk 0:01:02.7]} 22... Rxd7 {[%clk 0:01:42.8]} 23. Rd1
{[%clk 0:00:57.1]} 23... Rc4 {[%clk 0:01:42.4]} 24. d5 {[%clk 0:00:53.4]} 24...
Kf8 {[%clk 0:01:35.7]} 25. d6 {[%clk 0:00:45]} 25... Rc6 {[%clk 0:01:21.8]} 26.
Red2 {[%clk 0:00:44.6]} 26... Ke8 {[%clk 0:01:20.5]} 27. Rd3 {[%clk 0:00:44]}
27... Rc2 {[%clk 0:01:14.7]} 28. R1d2 {[%clk 0:00:39.3]} 28... Rxd2 {[%clk
0:01:14]} 29. Rxd2 {[%clk 0:00:40.2]} 29... Rd8 {[%clk 0:01:00.1]} 30. Re2+
{[%clk 0:00:39.1]} 30... Kf8 {[%clk 0:01:00]} 31. Rd2 {[%clk 0:00:31.6]} 31...
Kg7 {[%clk 0:00:59.4]} 32. a4 {[%clk 0:00:24.9]} 32... Kf6 {[%clk 0:00:58.9]}
33. a5 {[%clk 0:00:21.7]} 33... bxa5 {[%clk 0:00:54.3]} 34. Rd5 {[%clk
0:00:18.1]} 34... a6 {[%clk 0:00:48.6]} 35. d7 {[%clk 0:00:16.9]} 35... Ke7
{[%clk 0:00:40.2]} 36. Rxa5 {[%clk 0:00:17.5]} 36... Ra8 {[%clk 0:00:40.3]} 37.
Rd5 {[%clk 0:00:16.8]} 37... Kd8 {[%clk 0:00:39.8]} 38. Kf2 {[%clk 0:00:17]}
38... a5 {[%clk 0:00:39.1]} 39. h4 {[%clk 0:00:15.9]} 39... a4 {[%clk
0:00:39.5]} 40. Rd3 {[%clk 0:00:14.3]} 40... a3 {[%clk 0:00:39.5]} 41. Rd1
{[%clk 0:00:14.7]} 41... a2 {[%clk 0:00:39.6]} 42. Ra1 {[%clk 0:00:15.6]} 42...
Kxd7 {[%clk 0:00:39.9]} 43. Ke3 {[%clk 0:00:16.2]} 43... Ke6 {[%clk 0:00:38.6]}
44. g4 {[%clk 0:00:16.5]} 44... Ra3+ {[%clk 0:00:37]} 45. Kf4 {[%clk 0:00:16.7]}
45... f6 {[%clk 0:00:35.3]} 46. Re1+ {[%clk 0:00:15.4]} 46... Kf7 {[%clk
0:00:34.3]} 47. Ra1 {[%clk 0:00:16.3]} 47... Ra4+ {[%clk 0:00:33.9]} 48. Kg3
{[%clk 0:00:16]} 48... g5 {[%clk 0:00:34.1]} 49. h5 {[%clk 0:00:14.5]} 49... Ke6
{[%clk 0:00:34.2]} 50. Kf2 {[%clk 0:00:15]} 50... f5 {[%clk 0:00:33.1]} 51. Ke3
{[%clk 0:00:15.9]} 51... Ke5 {[%clk 0:00:31]} 52. gxf5 {[%clk 0:00:15.9]} 52...
Kxf5 {[%clk 0:00:31.3]} 53. Kd3 {[%clk 0:00:16.4]} 53... Kf4 {[%clk 0:00:31.2]}
54. Kc3 {[%clk 0:00:17]} 54... Kxf3 {[%clk 0:00:30.2]} 55. Kb3 {[%clk
0:00:17.9]} 55... Ra6 {[%clk 0:00:28.9]} 56. Rxa2 {[%clk 0:00:18.8]} 56... Rxa2
{[%clk 0:00:28.2]} 57. Kxa2 {[%clk 0:00:19.7]} 57... Kg4 {[%clk 0:00:28.3]} 58.
Kb3 {[%clk 0:00:20.6]} 58... Kxh5 {[%clk 0:00:29.2]} 59. Kc4 {[%clk 0:00:21.5]}
59... Kg4 {[%clk 0:00:29.7]} 60. Kd5 {[%clk 0:00:22.4]} 60... Kf3 {[%clk
0:00:30.1]} 61. Kd6 {[%clk 0:00:23.3]} 61... g4 {[%clk 0:00:30.7]} 62. Kd7
{[%clk 0:00:24.2]} 62... g3 {[%clk 0:00:31.6]} 63. Kc8 {[%clk 0:00:25.1]} 63...
g2 {[%clk 0:00:31.2]} 64. Kb7 {[%clk 0:00:26]} 64... g1=Q {[%clk 0:00:31]} 65.
Kc6 {[%clk 0:00:25.6]} 65... Qg5 {[%clk 0:00:29.9]} 66. Kd7 {[%clk 0:00:26.5]}
66... Qf6 {[%clk 0:00:29.6]} 67. Kc8 {[%clk 0:00:26.5]} 67... Qe7 {[%clk
0:00:29.5]} 68. Kb8 {[%clk 0:00:26.7]} 68... Ke4 {[%clk 0:00:29.9]} 69. Ka8
{[%clk 0:00:27.6]} 69... Kd5 {[%clk 0:00:30.7]} 70. Kb8 {[%clk 0:00:28.5]} 70...
Kc6 {[%clk 0:00:31.1]} 71. Ka8 {[%clk 0:00:29.4]} 71... Qb7# {[%clk 0:00:31.4]}
0-1

[Event "*** Titled Tuesday Blitz"]
[Site "Chess.com"]
[Date "2021.03.30"]
[Round "1"]
[White "MuhittinBuker"]
[Black "Mikhail_Golubev"]
[Result "0-1"]
[WhiteElo "2199"]
[BlackElo "2527"]
[TimeControl "180+1"]
[EndTime "10:07:44 PDT"]
[Termination "Mikhail_Golubev won on time"]

1. d4 {[%clk 0:02:59]} 1... Nf6 {[%clk 0:02:59.1]} 2. c4 {[%clk 0:02:58.1]} 2...
g6 {[%clk 0:02:59.1]} 3. Nc3 {[%clk 0:02:57]} 3... Bg7 {[%clk 0:02:59.6]} 4. e4
{[%clk 0:02:56.5]} 4... d6 {[%clk 0:02:57.6]} 5. Nf3 {[%clk 0:02:56.8]} 5... O-O
{[%clk 0:02:57]} 6. Be2 {[%clk 0:02:57.1]} 6... e5 {[%clk 0:02:56.9]} 7. O-O
{[%clk 0:02:56.8]} 7... Nc6 {[%clk 0:02:57]} 8. d5 {[%clk 0:02:56.7]} 8... Ne7
{[%clk 0:02:57.1]} 9. Ne1 {[%clk 0:02:56.9]} 9... Ne8 {[%clk 0:02:56.6]} 10. Nd3
{[%clk 0:02:57.2]} 10... f5 {[%clk 0:02:56]} 11. Bd2 {[%clk 0:02:57.7]} 11...
Kh8 {[%clk 0:02:48.9]} 12. a4 {[%clk 0:02:56.1]} 12... Nf6 {[%clk 0:02:41.8]}
13. f3 {[%clk 0:02:55.3]} 13... a5 {[%clk 0:02:40.6]} 14. b4 {[%clk 0:02:49.6]}
14... axb4 {[%clk 0:02:37.7]} 15. Nxb4 {[%clk 0:02:49.4]} 15... f4 {[%clk
0:02:34.3]} 16. Nd3 {[%clk 0:02:49.2]} 16... g5 {[%clk 0:02:30.4]} 17. c5 {[%clk
0:02:48.3]} 17... Ng6 {[%clk 0:02:25.7]} 18. cxd6 {[%clk 0:02:47.4]} 18... cxd6
{[%clk 0:02:25.9]} 19. Nf2 {[%clk 0:02:46.4]} 19... h5 {[%clk 0:02:21.6]} 20. h3
{[%clk 0:02:45.2]} 20... Rf7 {[%clk 0:02:12]} 21. Nb5 {[%clk 0:02:44.4]} 21...
Bf8 {[%clk 0:02:08.1]} 22. Qc2 {[%clk 0:02:27.3]} 22... g4 {[%clk 0:01:41.8]}
23. hxg4 {[%clk 0:02:26.1]} 23... hxg4 {[%clk 0:01:40.6]} 24. fxg4 {[%clk
0:02:25.9]} 24... Rh7 {[%clk 0:01:39.6]} 25. Rfc1 {[%clk 0:02:23.7]} 25... Ne8
{[%clk 0:01:13.5]} 26. Ra3 {[%clk 0:02:18.3]} 26... Be7 {[%clk 0:01:00.9]} 27.
Rc3 {[%clk 0:02:15.8]} 27... Bd7 {[%clk 0:00:57.2]} 28. Qb3 {[%clk 0:01:53.4]}
28... Bh4 {[%clk 0:00:49]} 29. Be1 {[%clk 0:01:47.7]} 29... Bg3 {[%clk
0:00:44.8]} 30. Nh3 {[%clk 0:01:40.6]} 30... Bxe1 {[%clk 0:00:42.2]} 31. Rxe1
{[%clk 0:01:39]} 31... Qh4 {[%clk 0:00:40.8]} 32. Rec1 {[%clk 0:01:28.5]} 32...
Bxg4 {[%clk 0:00:33.7]} 33. Bxg4 {[%clk 0:01:28.4]} 33... Qxg4 {[%clk
0:00:33.7]} 34. Nc7 {[%clk 0:01:20.2]} 34... Nh4 {[%clk 0:00:32.5]} 35. Qb2
{[%clk 0:01:07]} 35... Nxc7 {[%clk 0:00:32.2]} 36. Rxc7 {[%clk 0:01:04.7]} 36...
Rg8 {[%clk 0:00:27.8]} 37. Rxh7+ {[%clk 0:01:03.3]} 37... Kxh7 {[%clk
0:00:28.7]} 38. Rc2 {[%clk 0:00:24]} 38... Qxh3 {[%clk 0:00:24.9]} 39. Qxb7+
{[%clk 0:00:22.1]} 39... Kh8 {[%clk 0:00:23.4]} 40. Qb2 {[%clk 0:00:09.2]} 40...
Nf3+ {[%clk 0:00:19]} 41. Kf1 {[%clk 0:00:08.8]} 41... Qh1+ {[%clk 0:00:17.3]}
42. Ke2 {[%clk 0:00:08.9]} 42... Qe1+ {[%clk 0:00:15.6]} 43. Kd3 {[%clk
0:00:08.3]} 43... Qe3+ {[%clk 0:00:14.4]} 44. Kc4 {[%clk 0:00:07.8]} 44... Rc8+
{[%clk 0:00:14.1]} 45. Kb5 {[%clk 0:00:02.2]} 45... Rxc2 {[%clk 0:00:13.2]} 0-1

[Event "*** Titled Tuesday Blitz"]
[Site "Chess.com"]
[Date "2021.03.30"]
[Round "1"]
[White "Loy_Konstantin"]
[Black "SchmakAttack"]
[Result "0-1"]
[WhiteElo "2319"]
[BlackElo "2619"]
[TimeControl "180+1"]
[EndTime "10:07:45 PDT"]
[Termination "SchmakAttack won by checkmate"]

1. e4 {[%clk 0:03:00.6]} 1... e6 {[%clk 0:02:59.9]} 2. d3 {[%clk 0:03:00.6]}
2... d5 {[%clk 0:02:59.3]} 3. Nd2 {[%clk 0:03:01]} 3... Nc6 {[%clk 0:02:54.5]}
4. Ngf3 {[%clk 0:03:00.9]} 4... Nf6 {[%clk 0:02:54.7]} 5. c3 {[%clk 0:02:59]}
5... e5 {[%clk 0:02:48.4]} 6. Be2 {[%clk 0:02:41.6]} 6... Be7 {[%clk 0:02:38.3]}
7. O-O {[%clk 0:02:41.4]} 7... O-O {[%clk 0:02:38.3]} 8. b4 {[%clk 0:02:37.8]}
8... a6 {[%clk 0:02:24.8]} 9. a4 {[%clk 0:02:15.6]} 9... Re8 {[%clk 0:02:23.9]}
10. Bb2 {[%clk 0:02:14.3]} 10... Bf8 {[%clk 0:01:58.2]} 11. b5 {[%clk
0:02:11.4]} 11... Na5 {[%clk 0:01:57.1]} 12. Qc2 {[%clk 0:01:51.6]} 12... Bg4
{[%clk 0:01:31.2]} 13. h3 {[%clk 0:01:48.5]} 13... Bh5 {[%clk 0:01:30.5]} 14.
Rfe1 {[%clk 0:01:42.7]} 14... c5 {[%clk 0:01:19.7]} 15. c4 {[%clk 0:01:15.7]}
15... d4 {[%clk 0:01:16.6]} 16. Nh2 {[%clk 0:01:03.2]} 16... Bg6 {[%clk
0:01:15]} 17. Nb3 {[%clk 0:00:51.8]} 17... Nxb3 {[%clk 0:01:10.8]} 18. Qxb3
{[%clk 0:00:52.7]} 18... Bd6 {[%clk 0:00:59.9]} 19. Rf1 {[%clk 0:00:51.2]} 19...
Nd7 {[%clk 0:00:57.6]} 20. Bg4 {[%clk 0:00:48.1]} 20... Nf8 {[%clk 0:00:55.8]}
21. Qd1 {[%clk 0:00:33.7]} 21... Ne6 {[%clk 0:00:54.8]} 22. Bxe6 {[%clk
0:00:30.2]} 22... Rxe6 {[%clk 0:00:52.6]} 23. Qg4 {[%clk 0:00:30.2]} 23... Re8
{[%clk 0:00:39.6]} 24. Nf3 {[%clk 0:00:25.9]} 24... Qa5 {[%clk 0:00:16.1]} 25.
Nh4 {[%clk 0:00:09.2]} 25... Qd2 {[%clk 0:00:11.3]} 26. Bc1 {[%clk 0:00:06]}
26... Qxd3 {[%clk 0:00:11.2]} 27. Bg5 {[%clk 0:00:05.8]} 27... Qxe4 {[%clk
0:00:06.9]} 28. Qg3 {[%clk 0:00:05.5]} 28... Qd3 {[%clk 0:00:04.5]} 29. Qg4
{[%clk 0:00:04.7]} 29... Qxc4 {[%clk 0:00:02.8]} 30. Rac1 {[%clk 0:00:04.3]}
30... Qe6 {[%clk 0:00:02.5]} 31. Qg3 {[%clk 0:00:04]} 31... axb5 {[%clk
0:00:02.9]} 32. axb5 {[%clk 0:00:03.6]} 32... e4 {[%clk 0:00:03.6]} 33. Bf4
{[%clk 0:00:01.5]} 33... Bxf4 {[%clk 0:00:02.8]} 34. Qxf4 {[%clk 0:00:02.4]}
34... e3 {[%clk 0:00:03.1]} 35. fxe3 {[%clk 0:00:02.4]} 35... dxe3 {[%clk
0:00:03.7]} 36. Qf3 {[%clk 0:00:02.3]} 36... e2 {[%clk 0:00:03.7]} 37. Rfe1
{[%clk 0:00:02.9]} 37... b6 {[%clk 0:00:03]} 38. Kf2 {[%clk 0:00:02.9]} 38...
Rad8 {[%clk 0:00:02.2]} 39. g3 {[%clk 0:00:03]} 39... Rd3 {[%clk 0:00:02.3]} 40.
Qg4 {[%clk 0:00:02.3]} 40... Qe3+ {[%clk 0:00:02.4]} 41. Kg2 {[%clk 0:00:02.8]}
41... Be4+ {[%clk 0:00:02.8]} 42. Nf3 {[%clk 0:00:02.6]} 42... Bxf3+ {[%clk
0:00:03]} 43. Kh2 {[%clk 0:00:02.4]} 43... Bxg4 {[%clk 0:00:02.8]} 44. hxg4
{[%clk 0:00:01.5]} 44... Qxg3+ {[%clk 0:00:02.8]} 45. Kh1 {[%clk 0:00:01.5]}
45... Qh3+ {[%clk 0:00:03.5]} 46. Kg1 {[%clk 0:00:01.8]} 46... Rg3+ {[%clk
0:00:04.2]} 47. Kf2 {[%clk 0:00:02.7]} 47... Qh2# {[%clk 0:00:04.6]} 0-1